fUSD/lending_fUSD_20241219
["ID","MTS","AMOUNT","RATE_DAILY","PERIOD"]
[346023026,1734631842792,-500.0,0.00024266,4]
[346023027,1734631842802,-517.25,0.00024266,4]
[346023028,1734631842814,-500.0,0.00024266,4]
[346023029,1734631842828,-500.0,0.00024266,4]
[346023031,1734631842839,-500.0,0.00024266,4]
[346023034,1734631842851,-500.0,0.00024266,4]
[346023036,1734631842861,-500.0,0.00024266,4]
[346023038,1734631842873,-500.0,0.00024266,4]
[346023040,1734631842883,-500.0,0.00024266,4]
[346023041,1734631842893,-500.0,0.00024266,4]
[346023043,1734631842904,-500.0,0.00024266,4]
[346023044,1734631842915,-500.0,0.00024266,4]
[346023047,1734631842929,-500.0,0.00024266,4]
[346023052,1734631842940,-500.0,0.00024266,4]
[346023057,1734631842951,-500.0,0.00024266,4]
[346023060,1734631842961,-500.0,0.00024266,4]
[346023064,1734631842972,-500.0,0.00024266,4]
[346023068,1734631842983,-500.0,0.00024266,4]
[346023073,1734631842996,-500.0,0.00024266,4]
[346023076,1734631843007,-543.42,0.00024266,4]
[346023079,1734631843028,-500.0,0.00024266,4]
[346023082,1734631843040,-500.0,0.00024266,4]
[346023085,1734631843052,-500.0,0.00024266,4]
[346023088,1734631843063,-500.0,0.00024266,4]
[346023091,1734631843073,-500.0,0.00024266,4]
[346023094,1734631843085,-500.0,0.00024266,4]
[346023097,1734631843096,-500.0,0.00024266,4]
[346023100,1734631843108,-500.0,0.00024266,4]
[346023102,1734631843120,-500.0,0.00024266,4]
[346023105,1734631843131,-500.0,0.00024266,4]
[346023107,1734631843142,-500.0,0.00024266,4]
[346023109,1734631843152,-500.0,0.00024266,4]
[346023112,1734631843163,-500.0,0.00024266,4]
[346023114,1734631843174,-615.64,0.00024266,4]
[346023117,1734631843186,-500.0,0.00024266,4]
[346023119,1734631843197,-559.95,0.00024266,4]
[346023121,1734631843208,-500.0,0.00024266,4]
[346023123,1734631843220,-643.47938488,0.00024266,4]
[346023125,1734631843231,-500.0,0.00024266,4]
[346023127,1734631843245,-500.0,0.00024266,4]
[346023129,1734631843256,-347.17,0.00024266,4]
[346023130,1734631843275,-171.45,0.00024266,4]
[346023133,1734631843288,-500.0,0.00024266,4]
[346023134,1734631843299,-500.0,0.00024266,4]
[346023136,1734631843310,-500.0,0.00024266,4]
[346023138,1734631843322,-934.52,0.00024266,4]
[346023140,1734631843333,-500.0,0.00024266,4]
[346023142,1734631843346,-213.4,0.00024266,4]
[346023144,1734631843358,-500.0,0.00024266,4]
[346023146,1734631843369,-500.0,0.00024266,4]
[346023148,1734631843380,-500.0,0.00024266,4]
[346023150,1734631843391,-500.0,0.00024266,4]
[346023152,1734631843402,-500.0,0.00024266,4]
[346023154,1734631843414,-498.63827556,0.00024266,4]
[346023156,1734631843426,-500.0,0.00024266,4]
[346023157,1734631843443,-500.0,0.00024266,4]
[346023159,1734631843454,-566.1,0.00024266,4]
[346023161,1734631843466,-500.0,0.00024266,4]
[346023163,1734631843476,-500.0,0.00024266,4]
[346023165,1734631843488,-500.0,0.00024266,4]
[346023167,1734631843500,-500.0,0.00024266,4]
[346023169,1734631843513,-500.0,0.00024266,4]
[346023171,1734631843529,-500.0,0.00024266,4]
[346023173,1734631843540,-255.53,0.00024266,4]
[346023175,1734631843552,-500.0,0.00024266,4]
[346023177,1734631843562,-245.03,0.00024266,4]
[346023179,1734631843573,-500.0,0.00024266,4]
[346023181,1734631843585,-500.0,0.00024266,4]
[346023182,1734631843594,-298.28,0.00024266,4]
[346023184,1734631843604,-420.61,0.00024266,4]
[346023186,1734631843616,-371.13621623,0.00024266,4]
[346023188,1734631843626,-306.73,0.00024266,4]
[346023190,1734631843636,-742.81,0.00024266,4]
[346023192,1734631843645,-500.0,0.00024266,4]
[346023194,1734631843655,-500.0,0.00024266,4]
[346023196,1734631843665,-500.0,0.00024266,4]
[346023198,1734631843675,-187.72,0.00024266,4]
[346023199,1734631843685,-500.0,0.00024266,4]
[346023201,1734631843695,-500.0,0.00024266,4]
[346023203,1734631843706,-500.0,0.00024266,4]
[346023205,1734631843717,-500.0,0.00024266,4]
[346023207,1734631843728,-842.4,0.00024266,4]
[346023209,1734631843737,-500.0,0.00024266,4]
[346023211,1734631843748,-500.0,0.00024266,4]
[346023213,1734631843758,-500.0,0.00024266,4]
[346023215,1734631843774,-500.0,0.00024266,4]
[346023217,1734631843784,-500.0,0.00024266,4]
[346023219,1734631843794,-500.0,0.00024266,4]
[346023221,1734631843804,-500.0,0.00024266,4]
[346023222,1734631843814,-180.41,0.00024266,4]
[346023223,1734631843825,-472.34,0.00024266,4]
[346023224,1734631843835,-500.0,0.00024266,4]
[346023225,1734631843846,-500.0,0.00024266,4]
[346023226,1734631843857,-500.0,0.00024266,4]
[346023227,1734631843867,-500.0,0.00024266,4]
[346023228,1734631843877,-500.0,0.00024266,4]
[346023229,1734631843887,-1603.4,0.00024266,4]
[346023230,1734631843898,-518.83,0.00024266,4]
[346023231,1734631843908,-500.0,0.00024266,4]
[346023232,1734631843919,-500.0,0.00024266,4]
[346023233,1734631843929,-500.0,0.00024266,4]
[346023234,1734631843938,-500.0,0.00024266,4]
[346023235,1734631843948,-500.0,0.00024266,4]
[346023236,1734631843958,-500.0,0.00024266,4]
[346023237,1734631843968,-500.0,0.00024266,4]
[346023238,1734631843978,-500.0,0.00024266,4]
[346023239,1734631843988,-500.0,0.00024266,4]
[346023240,1734631843998,-500.0,0.00024266,4]
[346023241,1734631844008,-500.0,0.00024266,4]
[346023243,1734631844028,-500.0,0.00024266,4]
[346023244,1734631844039,-500.0,0.00024266,4]
[346023245,1734631844050,-500.0,0.00024266,4]
[346023247,1734631844062,-500.0,0.00024266,4]
[346023249,1734631844072,-500.0,0.00024266,4]
[346023252,1734631844083,-500.0,0.00024266,4]
[346023254,1734631844093,-713.5,0.00024266,4]
[346023256,1734631844104,-350.06,0.00024266,4]
[346023258,1734631844115,-500.0,0.00024266,4]
[346023260,1734631844125,-500.0,0.00024266,4]
[346023262,1734631844135,-500.0,0.00024266,4]
[346023265,1734631844144,-500.0,0.00024266,4]
[346023268,1734631844154,-500.0,0.00024266,4]
[346023271,1734631844164,-500.0,0.00024266,4]
[346023273,1734631844174,-500.0,0.00024266,4]
[346023276,1734631844184,-500.0,0.00024266,4]
[346023278,1734631844194,-1144.91,0.00024266,4]
[346023281,1734631844203,-620.89,0.00024266,4]
[346023283,1734631844213,-500.0,0.00024266,4]
[346023286,1734631844223,-500.0,0.00024266,4]
[346023290,1734631844234,-500.0,0.00024266,4]
[346023293,1734631844243,-500.0,0.00024267,4]
[346023296,1734631844253,-806.4,0.00024267,4]
[346023299,1734631844269,-306.35185132,0.00024267,4]
[346023302,1734631844279,-167.79367203,0.00024267,4]
[346023304,1734631844288,-334.74459971,0.00024267,4]
[346023306,1734631844298,-500.0,0.00024267,4]
[346023308,1734631844308,-500.0,0.00024267,4]
[346023310,1734631844318,-543.8,0.00024267,4]
[346023312,1734631844327,-748.01,0.00024267,4]
[346023314,1734631844337,-500.0,0.00024267,4]
[346023316,1734631844347,-500.0,0.00024267,4]
[346023318,1734631844356,-500.0,0.00024267,4]
[346023320,1734631844366,-500.0,0.00024267,4]
[346023322,1734631844375,-500.0,0.00024267,4]
[346023324,1734631844385,-500.0,0.00024267,4]
[346023326,1734631844395,-156.14591801,0.00024267,4]
[346023328,1734631844404,-500.0,0.00024267,4]
[346023330,1734631844414,-500.0,0.00024267,4]
[346023332,1734631844423,-500.0,0.00024267,4]
[346023334,1734631844434,-500.0,0.00024268,4]
[346023336,1734631844444,-500.0,0.00024268,4]
[346023338,1734631844454,-500.0,0.00024268,4]
[346023340,1734631844463,-500.0,0.00024268,4]
[346023342,1734631844473,-500.0,0.00024268,4]
[346023344,1734631844484,-500.0,0.00024268,4]
[346023345,1734631844494,-500.0,0.00024268,4]
[346023347,1734631844503,-500.0,0.00024268,4]
[346023349,1734631844517,-500.0,0.00024268,4]
[346023351,1734631844527,-500.0,0.00024268,4]
[346023353,1734631844537,-500.0,0.00024268,4]
[346023355,1734631844546,-500.0,0.00024268,4]
[346023357,1734631844558,-500.0,0.00024268,4]
[346023359,1734631844570,-500.0,0.00024268,4]
[346023362,1734631844580,-500.0,0.00024268,4]
[346023364,1734631844590,-500.0,0.00024268,4]
[346023366,1734631844600,-500.0,0.00024268,4]
[346023368,1734631844610,-500.0,0.00024268,4]
[346023370,1734631844620,-500.0,0.00024268,4]
[346023371,1734631844629,-500.0,0.00024268,4]
[346023373,1734631844639,-589.16,0.00024268,4]
[346023375,1734631844648,-723.35,0.00024268,4]
[346023377,1734631844657,-500.0,0.00024268,4]
[346023379,1734631844667,-500.0,0.00024268,4]
[346023381,1734631844676,-500.0,0.00024268,4]
[346023383,1734631844686,-500.0,0.00024268,4]
[346023385,1734631844696,-500.0,0.00024268,4]
[346023387,1734631844705,-500.0,0.00024268,4]
[346023389,1734631844715,-844.37,0.00024268,4]
[346023391,1734631844724,-500.0,0.00024268,4]
[346023393,1734631844734,-500.0,0.00024268,4]
[346023395,1734631844744,-500.0,0.00024268,4]
[346023396,1734631844753,-501.85267488,0.00024268,4]
[346023397,1734631844766,-500.0,0.00024268,4]
[346023398,1734631844776,-447.04,0.00024268,4]
[346023399,1734631844786,-2740.40673529,0.00024286,2]
[346023400,1734631844796,-1700.0,0.000243,8]
[346023401,1734631844806,-432.04614065,0.00024341,2]
[346023402,1734631844816,-2500.0,0.00024354,2]
[346023403,1734631844826,-300.0,0.000244,8]
[346023404,1734631844835,-2740.40673529,0.00024408,2]
[346023405,1734631844846,-191.21,0.00024433,2]
[346023406,1734631844855,-432.04614065,0.00024452,2]
[346023407,1734631844865,-261.0174725,0.000245,2]
[346023408,1734631844875,-682.0,0.000245,2]
[346023409,1734631844886,-300.0,0.000245,8]
[346023410,1734631844896,-612.52,0.00024508,7]
[346023411,1734631844907,-612.52,0.00024508,7]
[346023412,1734631844917,-2500.0,0.00024513,2]
[346023413,1734631844927,-2740.40673529,0.00024531,2]
[346023414,1734631844936,-500.0,0.00024538,2]
[346023415,1734631844946,-500.0,0.00024538,2]
[346023416,1734631844956,-500.0,0.00024539,4]
[346023417,1734631844965,-500.0,0.00024539,4]
[346023419,1734631844975,-500.0,0.00024539,4]
[346023421,1734631844985,-500.0,0.00024539,4]
[346023423,1734631844994,-512.54,0.00024539,4]
[346023424,1734631845004,-500.0,0.00024539,4]
[346023426,1734631845017,-404.38,0.00024539,4]
[346023428,1734631845026,-500.0,0.00024539,4]
[346023431,1734631845036,-500.0,0.00024539,4]
[346023432,1734631845045,-500.0,0.00024539,4]
[346023434,1734631845055,-500.0,0.00024539,4]
[346023436,1734631845064,-886.14,0.00024539,4]
[346023438,1734631845074,-324.02,0.00024539,4]
[346023440,1734631845084,-500.0,0.00024539,4]
[346023442,1734631845094,-500.0,0.00024539,4]
[346023444,1734631845104,-347.36,0.00024539,4]
[346023446,1734631845113,-375.02,0.00024539,4]
[346023448,1734631845122,-500.0,0.00024539,4]
[346023450,1734631845132,-500.0,0.00024539,4]
[346023452,1734631845141,-500.0,0.00024539,4]
[346023454,1734631845150,-334.5,0.00024539,4]
[346023456,1734631845160,-500.0,0.00024539,4]
[346023458,1734631845169,-500.0,0.00024539,4]
[346023460,1734631845178,-500.0,0.00024539,4]
[346023462,1734631845187,-500.0,0.00024539,4]
[346023464,1734631845197,-500.0,0.00024539,4]
[346023465,1734631845206,-335.77,0.00024539,4]
[346023468,1734631845216,-500.0,0.0002454,4]
[346023470,1734631845225,-500.0,0.0002454,4]
[346023472,1734631845234,-500.0,0.0002454,4]
[346023473,1734631845243,-500.0,0.0002454,4]
[346023475,1734631845253,-500.0,0.0002454,4]
[346023478,1734631845267,-500.0,0.0002454,4]
[346023479,1734631845278,-165.92,0.0002454,4]
[346023481,1734631845288,-500.0,0.0002454,4]
[346023483,1734631845297,-500.0,0.0002454,4]
[346023485,1734631845308,-500.0,0.0002454,4]
[346023486,1734631845318,-500.0,0.0002454,4]
[346023487,1734631845328,-615.89,0.0002454,4]
[346023488,1734631845338,-500.0,0.0002454,4]
[346023489,1734631845348,-500.0,0.0002454,4]
[346023490,1734631845358,-500.0,0.0002454,4]
[346023492,1734631845369,-500.0,0.0002454,4]
[346023494,1734631845380,-500.0,0.0002454,4]
[346023497,1734631845390,-500.0,0.0002454,4]
[346023499,1734631845400,-297.91,0.0002454,4]
[346023502,1734631845410,-913.04,0.0002454,4]
[346023510,1734631845454,-500.0,0.0002454,4]
[346023515,1734631845465,-291.67,0.0002454,4]
[346023518,1734631845475,-500.0,0.0002454,4]
[346023522,1734631845486,-500.0,0.0002454,4]
[346023526,1734631845496,-500.0,0.0002454,4]
[346023530,1734631845506,-500.0,0.0002454,4]
[346023534,1734631845518,-500.0,0.0002454,4]
[346023538,1734631845528,-500.0,0.0002454,4]
[346023543,1734631845538,-500.0,0.0002454,4]
[346023548,1734631845547,-500.0,0.0002454,4]
[346023554,1734631845557,-500.0,0.0002454,4]
[346023559,1734631845568,-222.21,0.0002454,4]
[346023564,1734631845577,-500.0,0.0002454,4]
[346023568,1734631845587,-500.0,0.0002454,4]
[346023573,1734631845597,-543.42,0.0002454,4]
[346023577,1734631845607,-347.74,0.0002454,4]
[346023580,1734631845616,-500.0,0.0002454,4]
[346023584,1734631845625,-500.0,0.0002454,4]
[346023587,1734631845635,-500.0,0.0002454,4]
[346023591,1734631845644,-500.0,0.0002454,4]
[346023593,1734631845653,-500.0,0.0002454,4]
[346023597,1734631845663,-500.0,0.0002454,4]
[346023601,1734631845673,-597.49095905,0.0002454,4]
[346023604,1734631845682,-500.0,0.0002454,4]
[346023607,1734631845691,-500.0,0.0002454,4]
[346023610,1734631845700,-318.15,0.0002454,4]
[346023613,1734631845709,-167.64570762,0.0002454,4]
[346023616,1734631845722,-500.0,0.0002454,4]
[346023619,1734631845731,-500.0,0.0002454,4]
[346023622,1734631845740,-500.0,0.0002454,4]
[346023624,1734631845749,-500.0,0.0002454,4]
[346023627,1734631845759,-231.61,0.0002454,4]
[346023629,1734631845774,-934.52,0.0002454,4]
[346023631,1734631845783,-500.0,0.0002454,4]
[346023633,1734631845793,-500.0,0.0002454,4]
[346023635,1734631845802,-500.0,0.0002454,4]
[346023637,1734631845813,-500.0,0.0002454,4]
[346023639,1734631845823,-500.0,0.0002454,4]
[346023641,1734631845832,-500.0,0.0002454,4]
[346023643,1734631845842,-323.32,0.0002454,4]
[346023645,1734631845851,-567.73,0.0002454,4]
[346023647,1734631845860,-500.0,0.0002454,4]
[346023649,1734631845869,-500.0,0.0002454,4]
[346023650,1734631845878,-250.88,0.0002454,4]
[346023653,1734631845888,-500.0,0.0002454,4]
[346023655,1734631845899,-500.0,0.0002454,4]
[346023656,1734631845908,-500.0,0.0002454,4]
[346023658,1734631845918,-500.0,0.0002454,4]
[346023660,1734631845927,-742.81,0.0002454,4]
[346023662,1734631845935,-500.0,0.0002454,4]
[346023664,1734631845944,-500.0,0.0002454,4]
[346023666,1734631845954,-500.0,0.0002454,4]
[346023668,1734631845963,-500.0,0.0002454,4]
[346023670,1734631845973,-500.0,0.0002454,4]
[346023672,1734631845982,-500.0,0.0002454,4]
[346023674,1734631845991,-500.0,0.0002454,4]
[346023676,1734631846000,-842.4,0.0002454,4]
[346023678,1734631846010,-502.65,0.0002454,4]
[346023680,1734631846027,-388.03,0.0002454,4]
[346023682,1734631846036,-197.3139667,0.0002454,4]
[346023684,1734631846045,-500.0,0.0002454,4]
[346023686,1734631846055,-500.0,0.0002454,4]
[346023688,1734631846063,-500.0,0.0002454,4]
[346023690,1734631846073,-567.03,0.0002454,4]
[346023692,1734631846083,-500.0,0.0002454,4]
[346023694,1734631846093,-500.0,0.0002454,4]
[346023696,1734631846103,-500.0,0.0002454,4]
[346023698,1734631846112,-500.0,0.0002454,4]
[346023700,1734631846122,-500.0,0.0002454,4]
[346023702,1734631846131,-1603.4,0.0002454,4]
[346023704,1734631846140,-500.0,0.0002454,4]
[346023706,1734631846149,-353.28,0.0002454,4]
[346023708,1734631846159,-500.0,0.0002454,4]
[346023710,1734631846169,-500.0,0.0002454,4]
[346023712,1734631846178,-500.0,0.0002454,4]
[346023714,1734631846187,-500.0,0.0002454,4]
[346023716,1734631846196,-500.0,0.0002454,4]
[346023718,1734631846206,-500.0,0.0002454,4]
[346023720,1734631846216,-500.0,0.0002454,4]
[346023722,1734631846225,-500.0,0.0002454,4]
[346023724,1734631846235,-500.0,0.0002454,4]
[346023726,1734631846244,-500.0,0.0002454,4]
[346023728,1734631846253,-500.0,0.0002454,4]
[346023730,1734631846262,-713.5,0.0002454,4]
[346023732,1734631846277,-500.0,0.0002454,4]
[346023734,1734631846288,-561.77,0.0002454,4]
[346023735,1734631846298,-500.0,0.0002454,4]
[346023736,1734631846308,-500.0,0.0002454,4]
[346023737,1734631846318,-500.0,0.0002454,4]
[346023738,1734631846327,-500.0,0.0002454,4]
[346023739,1734631846337,-500.0,0.0002454,4]
[346023741,1734631846347,-1144.91,0.0002454,4]
[346023743,1734631846357,-500.0,0.0002454,4]
[346023745,1734631846366,-532.22,0.0002454,4]
[346023747,1734631846376,-500.0,0.0002454,4]
[346023749,1734631846385,-1225.15,0.00024541,4]
[346023751,1734631846395,-313.62,0.00024541,4]
[346023753,1734631846404,-806.4,0.00024541,4]
[346023755,1734631846413,-614.949001,0.00024541,4]
[346023757,1734631846422,-500.0,0.00024541,4]
[346023759,1734631846432,-543.8,0.00024541,4]
[346023761,1734631846442,-748.01,0.00024541,4]
[346023763,1734631846452,-500.0,0.00024541,4]
[346023765,1734631846461,-365.29,0.00024541,4]
[346023767,1734631846471,-590.96,0.00024541,4]
[346023769,1734631846484,-500.0,0.00024541,4]
[346023771,1734631846494,-500.0,0.00024541,4]
[346023773,1734631846503,-500.0,0.00024541,4]
[346023775,1734631846519,-500.0,0.00024541,4]
[346023777,1734631846528,-500.0,0.00024541,4]
[346023778,1734631846537,-500.0,0.00024541,4]
[346023779,1734631846546,-500.0,0.00024542,4]
[346023780,1734631846557,-209.25,0.00024542,4]
[346023781,1734631846567,-500.0,0.00024542,4]
[346023782,1734631846576,-348.70394694,0.00024542,4]
[346023783,1734631846585,-500.0,0.00024542,4]
[346023785,1734631846595,-500.0,0.00024542,4]
[346023787,1734631846604,-500.0,0.00024542,4]
[346023789,1734631846613,-500.0,0.00024542,4]
[346023791,1734631846622,-500.0,0.00024542,4]
[346023792,1734631846631,-500.0,0.00024542,4]
[346023794,1734631846640,-500.0,0.00024542,4]
[346023796,1734631846649,-500.0,0.00024542,4]
[346023798,1734631846658,-500.0,0.00024542,4]
[346023800,1734631846668,-500.0,0.00024542,4]
[346023801,1734631846677,-500.0,0.00024542,4]
[346023802,1734631846687,-500.0,0.00024542,4]
[346023803,1734631846695,-500.0,0.00024542,4]
[346023804,1734631846709,-500.0,0.00024542,4]
[346023805,1734631846718,-500.0,0.00024542,4]
[346023806,1734631846728,-500.0,0.00024542,4]
[346023807,1734631846737,-589.16,0.00024542,4]
[346023808,1734631846746,-723.35,0.00024542,4]
[346023809,1734631846755,-500.0,0.00024542,4]
[346023810,1734631846770,-500.0,0.00024542,4]
[346023811,1734631846779,-500.0,0.00024542,4]
[346023812,1734631846789,-500.0,0.00024542,4]
[346023813,1734631846798,-500.0,0.00024542,4]
[346023814,1734631846808,-844.37,0.00024542,4]
[346023815,1734631846818,-500.0,0.00024542,4]
[346023816,1734631846827,-500.0,0.00024542,4]
[346023817,1734631846837,-500.0,0.00024542,4]
[346023818,1734631846846,-526.42423896,0.00024542,4]
[346023819,1734631846856,-150.0,0.00024558,2]
[346023820,1734631846866,-432.04614065,0.00024564,2]
[346023821,1734631846876,-300.0,0.000246,8]
[346023822,1734631846887,-2740.40673529,0.00024654,2]
[346023823,1734631846897,-14589.09252302,0.00024657,3]
[346023824,1734631846907,-5000.0,0.00024657,4]
[346023825,1734631846918,-694.77271872,0.00024657,4]
[346023826,1734631846928,-150.0,0.00024658,2]
[346023827,1734631846938,-432.04614065,0.00024676,2]
[346023828,1734631846948,-153.0,0.00024694,2]
[346023829,1734631846958,-153.0,0.00024694,2]
[346023830,1734631846968,-200.0,0.000247,2]
[346023832,1734631846978,-300.0,0.000247,9]
[346023834,1734631846988,-157.36,0.00024726,2]
[346023836,1734631846997,-682.0,0.0002475,2]
[346023838,1734631847007,-2740.40673529,0.00024777,2]
[346023840,1734631847021,-612.52,0.00024781,7]
[346023842,1734631847030,-612.52,0.00024781,7]
[346023844,1734631847039,-150.0,0.00024782,2]
[346023846,1734631847050,-432.04614065,0.00024788,2]
[346023848,1734631847060,-10077.04358,0.000248,2]
[346023850,1734631847070,-771.0,0.000248,9]
[346023852,1734631847079,-150.0,0.00024805,2]
[346023854,1734631847089,-500.0,0.00024813,4]
[346023856,1734631847099,-258.75,0.00024813,4]
[346023858,1734631847109,-500.0,0.00024813,4]
[346023860,1734631847119,-500.0,0.00024813,4]
[346023862,1734631847128,-512.54,0.00024813,4]
[346023864,1734631847138,-500.0,0.00024813,4]
[346023866,1734631847148,-500.0,0.00024813,4]
[346023868,1734631847158,-500.0,0.00024813,4]
[346023870,1734631847168,-500.0,0.00024813,4]
[346023872,1734631847177,-500.0,0.00024813,4]
[346023874,1734631847187,-886.14,0.00024813,4]
[346023876,1734631847197,-587.84,0.00024813,4]
[346023879,1734631847213,-500.0,0.00024813,4]
[346023880,1734631847228,-312.15559928,0.00024813,4]
[346023883,1734631847238,-500.0,0.00024813,4]
[346023885,1734631847248,-500.0,0.00024813,4]
[346023887,1734631847258,-500.0,0.00024813,4]
[346023888,1734631847271,-324.45,0.00024813,4]
[346023890,1734631847281,-500.0,0.00024813,4]
[346023892,1734631847291,-500.0,0.00024813,4]
[346023894,1734631847301,-500.0,0.00024813,4]
[346023896,1734631847310,-500.0,0.00024814,4]
[346023898,1734631847321,-500.0,0.00024814,4]
[346023900,1734631847333,-500.0,0.00024814,4]
[346023902,1734631847344,-500.0,0.00024814,4]
[346023904,1734631847354,-500.0,0.00024814,4]
[346023906,1734631847365,-500.0,0.00024814,4]
[346023908,1734631847375,-500.0,0.00024814,4]
[346023910,1734631847385,-500.0,0.00024814,4]
[346023912,1734631847395,-500.0,0.00024814,4]
[346023914,1734631847405,-500.0,0.00024814,4]
[346023917,1734631847416,-500.0,0.00024814,4]
[346023919,1734631847427,-500.0,0.00024814,4]
[346023920,1734631847439,-500.0,0.00024814,4]
[346023923,1734631847451,-163.76,0.00024814,4]
[346023925,1734631847461,-913.04,0.00024814,4]
[346023927,1734631847471,-500.0,0.00024814,4]
[346023929,1734631847484,-500.0,0.00024814,4]
[346023930,1734631847494,-421.8,0.00024814,4]
[346023932,1734631847504,-500.0,0.00024814,4]
[346023934,1734631847519,-500.0,0.00024814,4]
[346023936,1734631847529,-500.0,0.00024814,4]
[346023938,1734631847539,-165.73,0.00024814,4]
[346023940,1734631847549,-500.0,0.00024814,4]
[346023942,1734631847559,-500.0,0.00024814,4]
[346023944,1734631847569,-300.80617103,0.00024814,4]
[346023946,1734631847578,-500.0,0.00024814,4]
[346023948,1734631847588,-500.0,0.00024814,4]
[346023950,1734631847598,-543.42,0.00024814,4]
[346023952,1734631847608,-500.0,0.00024814,4]
[346023954,1734631847618,-500.0,0.00024814,4]
[346023956,1734631847628,-500.0,0.00024814,4]
[346023958,1734631847639,-500.0,0.00024814,4]
[346023960,1734631847649,-175.56,0.00024814,4]
[346023962,1734631847658,-500.0,0.00024814,4]
[346023964,1734631847668,-500.0,0.00024814,4]
[346023966,1734631847677,-500.0,0.00024814,4]
[346023968,1734631847687,-500.0,0.00024814,4]
[346023970,1734631847697,-500.0,0.00024814,4]
[346023972,1734631847706,-500.0,0.00024814,4]
[346023974,1734631847716,-500.0,0.00024814,4]
[346023976,1734631847726,-934.52,0.00024814,4]
[346023977,1734631847736,-500.0,0.00024814,4]
[346023978,1734631847746,-500.0,0.00024814,4]
[346023979,1734631847756,-500.0,0.00024814,4]
[346023980,1734631847769,-500.0,0.00024814,4]
[346023981,1734631847779,-320.33,0.00024814,4]
[346023982,1734631847789,-500.0,0.00024814,4]
[346023983,1734631847799,-500.0,0.00024814,4]
[346023984,1734631847809,-500.0,0.00024814,4]
[346023985,1734631847820,-500.0,0.00024814,4]
[346023986,1734631847831,-500.0,0.00024814,4]
[346023987,1734631847841,-500.0,0.00024814,4]
[346023988,1734631847851,-500.0,0.00024814,4]
[346023989,1734631847862,-742.81,0.00024814,4]
[346023990,1734631847872,-500.0,0.00024814,4]
[346023991,1734631847882,-500.0,0.00024814,4]
[346023992,1734631847891,-500.0,0.00024814,4]
[346023993,1734631847902,-442.5,0.00024814,4]
[346023994,1734631847912,-500.0,0.00024814,4]
[346023995,1734631847922,-500.0,0.00024814,4]
[346023996,1734631847933,-500.0,0.00024814,4]
[346023997,1734631847943,-842.4,0.00024814,4]
[346023998,1734631847954,-500.0,0.00024814,4]
[346023999,1734631847964,-500.0,0.00024814,4]
[346024000,1734631847974,-500.0,0.00024814,4]